[Event "*** Titled Tuesday Blitz"]
[Site "Chess.com"]
[Date "2020.10.20"]
[Round "4"]
[White "tylityli"]
[Black "arminmusovic"]
[Result "0-1"]
[WhiteElo "2231"]
[BlackElo "2567"]
[TimeControl "180+1"]
[EndTime "10:41:18 PDT"]
[Termination "arminmusovic won on time"]

1. d4 {[%clk 0:03:00.9]} 1... d5 {[%clk 0:02:59.9]} 2. c4 {[%clk 0:03:00.5]}
2... c5 {[%clk 0:03:00.2]} 3. cxd5 {[%clk 0:02:58.3]} 3... e6 {[%clk 0:03:00]}
4. Nf3 {[%clk 0:02:56.1]} 4... exd5 {[%clk 0:02:59.9]} 5. Nc3 {[%clk 0:02:56.2]}
5... Nc6 {[%clk 0:02:59.8]} 6. g3 {[%clk 0:02:56.1]} 6... h6 {[%clk 0:02:58.7]}
7. Bg2 {[%clk 0:02:56.3]} 7... Nf6 {[%clk 0:02:59.4]} 8. O-O {[%clk 0:02:56.3]}
8... a6 {[%clk 0:02:59.7]} 9. a3 {[%clk 0:02:52.1]} 9... Be7 {[%clk 0:02:56.6]}
10. dxc5 {[%clk 0:02:49.8]} 10... Bxc5 {[%clk 0:02:57.5]} 11. b4 {[%clk
0:02:49.2]} 11... Ba7 {[%clk 0:02:57.6]} 12. Bb2 {[%clk 0:02:47.9]} 12... O-O
{[%clk 0:02:53.7]} 13. h3 {[%clk 0:02:43.3]} 13... Re8 {[%clk 0:02:53.3]} 14.
Na4 {[%clk 0:02:38.4]} 14... Ne4 {[%clk 0:02:51]} 15. Nd4 {[%clk 0:02:23]} 15...
Bd7 {[%clk 0:02:27.5]} 16. e3 {[%clk 0:02:06.6]} 16... Nxd4 {[%clk 0:01:57.1]}
17. Bxd4 {[%clk 0:02:02.6]} 17... Bxa4 {[%clk 0:01:54.7]} 18. Qxa4 {[%clk
0:01:59.8]} 18... Bxd4 {[%clk 0:01:54.8]} 19. exd4 {[%clk 0:01:59.7]} 19... Rc8
{[%clk 0:01:47]} 20. Rac1 {[%clk 0:01:28.7]} 20... Nc3 {[%clk 0:01:43]} 21. Rxc3
{[%clk 0:01:13]} 21... Rxc3 {[%clk 0:01:43.9]} 22. b5 {[%clk 0:00:37.2]} 22...
Qd7 {[%clk 0:01:36.1]} 23. Rb1 {[%clk 0:00:32.6]} 23... Rc4 {[%clk 0:01:25.1]}
24. Qa5 {[%clk 0:00:27.1]} 24... Rxd4 {[%clk 0:01:08.4]} 25. bxa6 {[%clk
0:00:24.2]} 25... Ra4 {[%clk 0:01:08.5]} 26. Qxd5 {[%clk 0:00:20.3]} 26... Qxd5
{[%clk 0:01:04.8]} 27. Bxd5 {[%clk 0:00:21.2]} 27... Rxa6 {[%clk 0:01:04.3]} 28.
Rxb7 {[%clk 0:00:19.4]} 28... Rf8 {[%clk 0:00:55.7]} 29. Rb3 {[%clk 0:00:18.2]}
29... Ra5 {[%clk 0:00:54.8]} 30. Bf3 {[%clk 0:00:11.3]} 30... Rc8 {[%clk
0:00:50.9]} 31. Kg2 {[%clk 0:00:08]} 31... g6 {[%clk 0:00:49.6]} 32. h4 {[%clk
0:00:07.2]} 32... Rc7 {[%clk 0:00:48.1]} 33. Rb8+ {[%clk 0:00:05.4]} 33... Kg7
{[%clk 0:00:48.4]} 34. Rb3 {[%clk 0:00:04.8]} 34... Rca7 {[%clk 0:00:48.3]} 35.
Re3 {[%clk 0:00:04.6]} 35... Rxa3 {[%clk 0:00:48.4]} 36. Re4 {[%clk 0:00:05.5]}
36... R3a6 {[%clk 0:00:47.5]} 37. Rf4 {[%clk 0:00:05.3]} 37... Rf6 {[%clk
0:00:47.7]} 38. Re4 {[%clk 0:00:05.5]} 38... Ra2 {[%clk 0:00:46.8]} 39. Re3
{[%clk 0:00:05.2]} 39... Rb2 {[%clk 0:00:45.3]} 40. Re4 {[%clk 0:00:04.9]} 40...
Rb3 {[%clk 0:00:45.5]} 41. Be2 {[%clk 0:00:03]} 41... Ra3 {[%clk 0:00:43.9]} 42.
Kg1 {[%clk 0:00:02.7]} 42... Ra5 {[%clk 0:00:43]} 43. Kg2 {[%clk 0:00:02.9]}
43... Raf5 {[%clk 0:00:43.5]} 44. f4 {[%clk 0:00:01.9]} 44... Re6 {[%clk
0:00:42.9]} 0-1

[Event "*** Titled Tuesday Blitz"]
[Site "Chess.com"]
[Date "2020.10.20"]
[Round "4"]
[White "HrvojeZagreb"]
[Black "denispopov"]
[Result "1-0"]
[WhiteElo "2199"]
[BlackElo "1952"]
[TimeControl "180+1"]
[EndTime "10:41:19 PDT"]
[Termination "HrvojeZagreb won on time"]

1. d4 {[%clk 0:03:00.9]} 1... Nf6 {[%clk 0:02:58.1]} 2. Bf4 {[%clk 0:03:00.4]}
2... g6 {[%clk 0:02:58.1]} 3. Nc3 {[%clk 0:03:00]} 3... d5 {[%clk 0:02:47.9]} 4.
e3 {[%clk 0:03:00]} 4... Bg7 {[%clk 0:02:42.4]} 5. h4 {[%clk 0:02:59.8]} 5... h5
{[%clk 0:02:39.7]} 6. Nf3 {[%clk 0:02:57.7]} 6... O-O {[%clk 0:02:34.2]} 7. Ne5
{[%clk 0:02:56.6]} 7... Nbd7 {[%clk 0:02:32.5]} 8. Bd3 {[%clk 0:02:49]} 8... c5
{[%clk 0:02:19.9]} 9. f3 {[%clk 0:02:29.1]} 9... cxd4 {[%clk 0:02:05]} 10. exd4
{[%clk 0:02:28.6]} 10... Nxe5 {[%clk 0:01:39.1]} 11. Bxe5 {[%clk 0:02:27.7]}
11... Be6 {[%clk 0:01:27.7]} 12. Qd2 {[%clk 0:02:25.3]} 12... Nd7 {[%clk
0:01:04.8]} 13. Bxg7 {[%clk 0:02:23.2]} 13... Kxg7 {[%clk 0:01:05.7]} 14. g4
{[%clk 0:01:52.5]} 14... hxg4 {[%clk 0:00:46.8]} 15. h5 {[%clk 0:01:53.4]} 15...
Rh8 {[%clk 0:00:46.2]} 16. h6+ {[%clk 0:01:53.4]} 16... Kh7 {[%clk 0:00:40.3]}
17. O-O-O {[%clk 0:01:51.2]} 17... gxf3 {[%clk 0:00:29.2]} 18. Qf4 {[%clk
0:01:36]} 18... Nf6 {[%clk 0:00:25]} 19. Rde1 {[%clk 0:01:14.9]} 19... Qd6
{[%clk 0:00:22.6]} 20. Qxf3 {[%clk 0:01:12.3]} 20... Bg4 {[%clk 0:00:21.8]} 21.
Qg2 {[%clk 0:00:56.9]} 21... a6 {[%clk 0:00:17.1]} 22. Re5 {[%clk 0:00:54.5]}
22... Rad8 {[%clk 0:00:12.4]} 23. Nxd5 {[%clk 0:00:31.8]} 23... Nxd5 {[%clk
0:00:10.7]} 24. Qxg4 {[%clk 0:00:31.5]} 24... Nf6 {[%clk 0:00:10.5]} 25. Qf3
{[%clk 0:00:20.4]} 25... Qc6 {[%clk 0:00:07.2]} 26. Qxc6 {[%clk 0:00:18.9]}
26... bxc6 {[%clk 0:00:08.1]} 27. Rxe7 {[%clk 0:00:18.4]} 27... Rhf8 {[%clk
0:00:08.3]} 28. Rf1 {[%clk 0:00:17.1]} 28... Rd6 {[%clk 0:00:08.1]} 29. Bxa6
{[%clk 0:00:07.5]} 29... Kxh6 {[%clk 0:00:07.2]} 30. c3 {[%clk 0:00:07.7]} 30...
Kg7 {[%clk 0:00:07]} 31. Bc4 {[%clk 0:00:07.8]} 31... Rb8 {[%clk 0:00:02.2]} 32.
Kc2 {[%clk 0:00:07.8]} 32... Rc8 {[%clk 0:00:02.2]} 33. b4 {[%clk 0:00:07.1]}
1-0

[Event "*** Titled Tuesday Blitz"]
[Site "Chess.com"]
[Date "2020.10.20"]
[Round "4"]
[White "Ajedrez_con_German"]
[Black "DenisQ"]
[Result "1/2-1/2"]
[WhiteElo "2461"]
[BlackElo "2667"]
[TimeControl "180+1"]
[EndTime "10:41:22 PDT"]
[Termination "Game drawn by repetition"]

1. d4 {[%clk 0:03:00.9]} 1... d5 {[%clk 0:02:59.6]} 2. Bf4 {[%clk 0:02:58.8]}
2... Nf6 {[%clk 0:02:59.2]} 3. e3 {[%clk 0:02:58]} 3... c5 {[%clk 0:02:57.8]} 4.
c3 {[%clk 0:02:57.6]} 4... Nc6 {[%clk 0:02:56.4]} 5. Nd2 {[%clk 0:02:56.3]} 5...
Bf5 {[%clk 0:02:51.3]} 6. Ngf3 {[%clk 0:02:40.1]} 6... Qb6 {[%clk 0:02:50.4]} 7.
Qb3 {[%clk 0:02:19.5]} 7... c4 {[%clk 0:02:47.9]} 8. Qxb6 {[%clk 0:02:17.9]}
8... axb6 {[%clk 0:02:47.4]} 9. Nh4 {[%clk 0:02:15.6]} 9... Bd7 {[%clk
0:02:37.8]} 10. a3 {[%clk 0:02:11.9]} 10... Nh5 {[%clk 0:02:30.6]} 11. Bg3
{[%clk 0:02:05]} 11... Nxg3 {[%clk 0:02:28.4]} 12. hxg3 {[%clk 0:02:04.6]} 12...
b5 {[%clk 0:02:22.4]} 13. Rc1 {[%clk 0:02:03.8]} 13... e5 {[%clk 0:02:08.1]} 14.
dxe5 {[%clk 0:02:00]} 14... Nxe5 {[%clk 0:02:07.6]} 15. Nhf3 {[%clk 0:01:58.9]}
15... Nc6 {[%clk 0:02:02]} 16. Be2 {[%clk 0:01:56.9]} 16... Bd6 {[%clk
0:02:00.8]} 17. Bd1 {[%clk 0:01:56.6]} 17... O-O {[%clk 0:01:57.9]} 18. Bc2
{[%clk 0:01:56.3]} 18... h6 {[%clk 0:01:58]} 19. O-O {[%clk 0:01:49.4]} 19...
Rfe8 {[%clk 0:01:58]} 20. Rfe1 {[%clk 0:01:48.7]} 20... Bc5 {[%clk 0:01:56.2]}
21. Nd4 {[%clk 0:01:47.1]} 21... Nxd4 {[%clk 0:01:54.5]} 22. exd4 {[%clk
0:01:45.6]} 22... Bd6 {[%clk 0:01:54.7]} 23. Rxe8+ {[%clk 0:01:37.6]} 23... Rxe8
{[%clk 0:01:53.7]} 24. Kf1 {[%clk 0:01:33.5]} 24... f6 {[%clk 0:01:49.1]} 25.
Re1 {[%clk 0:01:30]} 25... Kf7 {[%clk 0:01:45.8]} 26. Nf3 {[%clk 0:01:22.5]}
26... Rxe1+ {[%clk 0:01:44.5]} 27. Kxe1 {[%clk 0:01:22.2]} 27... g5 {[%clk
0:01:40.2]} 28. Ke2 {[%clk 0:01:16.1]} 28... Bg4 {[%clk 0:01:38.2]} 29. Ke1
{[%clk 0:01:06.6]} 29... Ke6 {[%clk 0:01:32.8]} 30. Nd2 {[%clk 0:01:05.5]} 30...
f5 {[%clk 0:01:32]} 31. Bd1 {[%clk 0:00:55.9]} 31... Bxd1 {[%clk 0:01:24.3]} 32.
Kxd1 {[%clk 0:00:55.7]} 32... g4 {[%clk 0:01:24.6]} 33. Ke2 {[%clk 0:00:46]}
33... f4 {[%clk 0:01:22.7]} 34. gxf4 {[%clk 0:00:37]} 34... Bxf4 {[%clk
0:01:23.6]} 35. g3 {[%clk 0:00:26.1]} 35... Bg5 {[%clk 0:01:05.7]} 36. Kd1
{[%clk 0:00:20.3]} 36... Kf5 {[%clk 0:01:04]} 37. Ke2 {[%clk 0:00:18.3]} 37...
Bxd2 {[%clk 0:01:01.5]} 38. Kxd2 {[%clk 0:00:18.7]} 38... Ke4 {[%clk 0:01:02.4]}
39. Ke2 {[%clk 0:00:19]} 39... h5 {[%clk 0:01:02.4]} 40. Kd2 {[%clk 0:00:17.7]}
40... Kf3 {[%clk 0:01:01.1]} 41. Ke1 {[%clk 0:00:17.7]} 41... Kg2 {[%clk
0:00:23.6]} 42. Ke2 {[%clk 0:00:16.5]} 42... Kg1 {[%clk 0:00:22.6]} 43. Ke1
{[%clk 0:00:16]} 43... Kg2 {[%clk 0:00:22.5]} 44. Ke2 {[%clk 0:00:16.4]} 44...
Kg1 {[%clk 0:00:19.9]} 45. Ke1 {[%clk 0:00:16.4]} 45... Kg2 {[%clk 0:00:20.1]}
1/2-1/2

[Event "*** Titled Tuesday Blitz"]
[Site "Chess.com"]
[Date "2020.10.20"]
[Round "4"]
[White "UmarovSabir"]
[Black "Iskusnyh"]
[Result "0-1"]
[WhiteElo "2351"]
[BlackElo "2559"]
[TimeControl "180+1"]
[EndTime "10:41:23 PDT"]
[Termination "Iskusnyh won on time"]

1. e4 {[%clk 0:03:00.9]} 1... e6 {[%clk 0:02:59.9]} 2. d4 {[%clk 0:02:57.6]}
2... d5 {[%clk 0:03:00]} 3. Nd2 {[%clk 0:02:52.4]} 3... c5 {[%clk 0:02:59.5]} 4.
exd5 {[%clk 0:02:46.9]} 4... Qxd5 {[%clk 0:02:58.6]} 5. Ngf3 {[%clk 0:02:36.5]}
5... cxd4 {[%clk 0:02:58.4]} 6. Bc4 {[%clk 0:02:33.4]} 6... Qd7 {[%clk
0:02:58.9]} 7. Nb3 {[%clk 0:02:26.8]} 7... Nc6 {[%clk 0:02:58.4]} 8. Nbxd4
{[%clk 0:02:21.8]} 8... Nxd4 {[%clk 0:02:55.7]} 9. Qxd4 {[%clk 0:02:20.4]} 9...
Qxd4 {[%clk 0:02:52.3]} 10. Nxd4 {[%clk 0:02:18.6]} 10... Bd7 {[%clk 0:02:52.2]}
11. O-O {[%clk 0:02:12.7]} 11... O-O-O {[%clk 0:02:51.3]} 12. Be3 {[%clk
0:01:54]} 12... Nf6 {[%clk 0:02:48.7]} 13. h3 {[%clk 0:01:41.9]} 13... Be7
{[%clk 0:02:25.3]} 14. Rad1 {[%clk 0:01:30.8]} 14... a6 {[%clk 0:02:10.4]} 15.
c3 {[%clk 0:01:19.7]} 15... Ne4 {[%clk 0:02:02.8]} 16. Nb3 {[%clk 0:01:07.8]}
16... Nd6 {[%clk 0:01:50.7]} 17. Be2 {[%clk 0:01:04.7]} 17... Bb5 {[%clk
0:01:49.8]} 18. Bxb5 {[%clk 0:00:59.9]} 18... Nxb5 {[%clk 0:01:48.8]} 19. Bb6
{[%clk 0:00:59.7]} 19... Rd6 {[%clk 0:01:46.2]} 20. Bc5 {[%clk 0:00:54.9]} 20...
Rxd1 {[%clk 0:01:42.2]} 21. Rxd1 {[%clk 0:00:55.8]} 21... Rd8 {[%clk 0:01:41]}
22. Rxd8+ {[%clk 0:00:52.8]} 22... Bxd8 {[%clk 0:01:40.3]} 23. Kf1 {[%clk
0:00:51.6]} 23... Kd7 {[%clk 0:01:35.8]} 24. Ke2 {[%clk 0:00:51.1]} 24... e5
{[%clk 0:01:34.6]} 25. Bf8 {[%clk 0:00:34]} 25... g6 {[%clk 0:01:33.8]} 26. Nc5+
{[%clk 0:00:31.9]} 26... Kc6 {[%clk 0:01:33.7]} 27. Nd3 {[%clk 0:00:29.8]} 27...
f6 {[%clk 0:01:31.6]} 28. f3 {[%clk 0:00:26.5]} 28... Nc7 {[%clk 0:01:30.6]} 29.
Ba3 {[%clk 0:00:24.1]} 29... Ne6 {[%clk 0:01:29.9]} 30. Nb4+ {[%clk 0:00:22.9]}
30... Kd7 {[%clk 0:01:28.1]} 31. Nd3 {[%clk 0:00:21.8]} 31... Bb6 {[%clk
0:01:23.5]} 32. b3 {[%clk 0:00:19.9]} 32... h5 {[%clk 0:01:15]} 33. Bb2 {[%clk
0:00:17.3]} 33... g5 {[%clk 0:01:12.7]} 34. Bc1 {[%clk 0:00:17.1]} 34... h4
{[%clk 0:01:07.7]} 35. Be3 {[%clk 0:00:17.1]} 35... Bxe3 {[%clk 0:01:03.5]} 36.
Kxe3 {[%clk 0:00:18]} 36... Kd6 {[%clk 0:01:03.7]} 37. Nf2 {[%clk 0:00:17]}
37... f5 {[%clk 0:01:02.7]} 38. Nd3 {[%clk 0:00:16.4]} 38... b5 {[%clk
0:00:57.6]} 39. c4 {[%clk 0:00:14.6]} 39... bxc4 {[%clk 0:00:52]} 40. bxc4
{[%clk 0:00:15.5]} 40... Nc5 {[%clk 0:00:49.4]} 41. Nxc5 {[%clk 0:00:06.1]}
41... Kxc5 {[%clk 0:00:48.9]} 42. Kd3 {[%clk 0:00:06.7]} 42... Kb4 {[%clk
0:00:49.1]} 43. a3+ {[%clk 0:00:05.8]} 43... Kc5 {[%clk 0:00:48.8]} 44. Kc3
{[%clk 0:00:05.4]} 44... e4 {[%clk 0:00:48.4]} 45. fxe4 {[%clk 0:00:04.6]} 45...
fxe4 {[%clk 0:00:48.5]} 46. a4 {[%clk 0:00:05]} 46... a5 {[%clk 0:00:47.8]} 47.
Kd2 {[%clk 0:00:01.3]} 47... Kxc4 {[%clk 0:00:47.1]} 48. Ke3 {[%clk 0:00:02.1]}
48... Kd5 {[%clk 0:00:47.6]} 0-1

[Event "*** Titled Tuesday Blitz"]
[Site "Chess.com"]
[Date "2020.10.20"]
[Round "4"]
[White "tdf98pantani"]
[Black "amintabatabaei"]
[Result "0-1"]
[WhiteElo "2723"]
[BlackElo "2952"]
[TimeControl "180+1"]
[EndTime "10:41:25 PDT"]
[Termination "amintabatabaei won by resignation"]

1. e4 {[%clk 0:03:00.9]} 1... e5 {[%clk 0:02:59.8]} 2. Nf3 {[%clk 0:03:00.4]}
2... Nc6 {[%clk 0:03:00.1]} 3. Bc4 {[%clk 0:03:00.3]} 3... Bc5 {[%clk
0:02:59.6]} 4. c3 {[%clk 0:03:00.1]} 4... Nf6 {[%clk 0:02:59.2]} 5. d3 {[%clk
0:03:00.3]} 5... d6 {[%clk 0:02:59.3]} 6. Nbd2 {[%clk 0:02:56.9]} 6... a5 {[%clk
0:02:59.3]} 7. Bb5 {[%clk 0:02:55.3]} 7... O-O {[%clk 0:02:58.8]} 8. O-O {[%clk
0:02:55]} 8... Bd7 {[%clk 0:02:48.4]} 9. Re1 {[%clk 0:02:49.7]} 9... Re8 {[%clk
0:02:48.3]} 10. Nf1 {[%clk 0:02:47.6]} 10... Bb6 {[%clk 0:02:48.7]} 11. Ng3
{[%clk 0:02:46.4]} 11... Ne7 {[%clk 0:02:49.2]} 12. Bc4 {[%clk 0:02:41.9]} 12...
Ng6 {[%clk 0:02:42.1]} 13. h3 {[%clk 0:02:36.5]} 13... a4 {[%clk 0:02:41.7]} 14.
d4 {[%clk 0:02:36.2]} 14... h6 {[%clk 0:02:32.7]} 15. Be3 {[%clk 0:02:10.5]}
15... exd4 {[%clk 0:02:22.4]} 16. Bxd4 {[%clk 0:02:10.5]} 16... Bxd4 {[%clk
0:02:16.1]} 17. Qxd4 {[%clk 0:02:05.7]} 17... b5 {[%clk 0:02:01]} 18. Bf1 {[%clk
0:02:03.5]} 18... Bc6 {[%clk 0:01:50.3]} 19. Rad1 {[%clk 0:01:56]} 19... Re6
{[%clk 0:01:39.7]} 20. Nf5 {[%clk 0:01:46]} 20... Bxe4 {[%clk 0:01:32]} 21. Ng3
{[%clk 0:01:17.6]} 21... Bxf3 {[%clk 0:01:28.5]} 22. gxf3 {[%clk 0:01:17.9]}
22... Qd7 {[%clk 0:01:21.4]} 23. f4 {[%clk 0:01:16.3]} 23... Nh4 {[%clk
0:01:17.5]} 24. Qd3 {[%clk 0:00:44.5]} 24... Rae8 {[%clk 0:01:02.5]} 25. Rxe6
{[%clk 0:00:42.9]} 25... Qxe6 {[%clk 0:01:02.9]} 26. Qxb5 {[%clk 0:00:40.5]}
26... Qxa2 {[%clk 0:01:02.7]} 27. Nh5 {[%clk 0:00:32.6]} 27... Qe6 {[%clk
0:00:57.2]} 28. Nxf6+ {[%clk 0:00:31.9]} 28... gxf6 {[%clk 0:00:58.1]} 29. Qxa4
{[%clk 0:00:31.8]} 29... f5 {[%clk 0:00:56.1]} 30. Rd3 {[%clk 0:00:28.6]} 30...
Kh7 {[%clk 0:00:51.6]} 31. Rg3 {[%clk 0:00:27]} 31... Rg8 {[%clk 0:00:50.5]} 32.
Qc4 {[%clk 0:00:19.7]} 32... Rxg3+ {[%clk 0:00:31.3]} 33. fxg3 {[%clk
0:00:19.8]} 33... Qe3+ {[%clk 0:00:31.7]} 34. Kh2 {[%clk 0:00:20.1]} 34... Qf2+
{[%clk 0:00:17.1]} 35. Kh1 {[%clk 0:00:20.2]} 35... d5 {[%clk 0:00:17.9]} 36.
Qd3 {[%clk 0:00:14.8]} 36... Nf3 {[%clk 0:00:16.7]} 37. Qxf5+ {[%clk 0:00:12.7]}
37... Kh8 {[%clk 0:00:14.2]} 38. Qf6+ {[%clk 0:00:12.3]} 38... Kg8 {[%clk
0:00:14.7]} 39. Qd8+ {[%clk 0:00:11.4]} 39... Kg7 {[%clk 0:00:15.3]} 0-1

[Event "*** Titled Tuesday Blitz"]
[Site "Chess.com"]
[Date "2020.10.20"]
[Round "4"]
[White "night_player"]
[Black "TheMagnet"]
[Result "0-1"]
[WhiteElo "2275"]
[BlackElo "2587"]
[TimeControl "180+1"]
[EndTime "10:41:25 PDT"]
[Termination "TheMagnet won on time"]

1. e4 {[%clk 0:03:00.9]} 1... c5 {[%clk 0:02:59.6]} 2. c3 {[%clk 0:03:00.5]}
2... Nf6 {[%clk 0:02:59.3]} 3. e5 {[%clk 0:03:00.7]} 3... Nd5 {[%clk 0:02:59.7]}
4. Nf3 {[%clk 0:03:00.2]} 4... d6 {[%clk 0:02:55.9]} 5. exd6 {[%clk 0:02:58.9]}
5... Qxd6 {[%clk 0:02:55.7]} 6. d4 {[%clk 0:02:58]} 6... cxd4 {[%clk 0:02:56]}
7. cxd4 {[%clk 0:02:54.4]} 7... Nc6 {[%clk 0:02:54.6]} 8. Nc3 {[%clk 0:02:52.9]}
8... Bf5 {[%clk 0:02:40.7]} 9. Bc4 {[%clk 0:02:46.7]} 9... Nb6 {[%clk
0:02:37.5]} 10. Bb3 {[%clk 0:02:44.9]} 10... e6 {[%clk 0:02:37.7]} 11. O-O
{[%clk 0:02:44.5]} 11... Be7 {[%clk 0:02:36.7]} 12. d5 {[%clk 0:02:32.9]} 12...
exd5 {[%clk 0:02:35.4]} 13. Nxd5 {[%clk 0:02:32.9]} 13... Nxd5 {[%clk
0:02:34.5]} 14. Qxd5 {[%clk 0:02:32.5]} 14... Qxd5 {[%clk 0:02:34.3]} 15. Bxd5
{[%clk 0:02:33.4]} 15... O-O {[%clk 0:02:33.2]} 16. Bb3 {[%clk 0:02:31.8]} 16...
Bf6 {[%clk 0:02:29.9]} 17. a3 {[%clk 0:01:20.2]} 17... Rfe8 {[%clk 0:02:19.9]}
18. Ba4 {[%clk 0:01:14.6]} 18... Be4 {[%clk 0:02:08.7]} 19. Be3 {[%clk
0:00:48.6]} 19... Bxb2 {[%clk 0:02:00.4]} 20. Ra2 {[%clk 0:00:48.5]} 20... Bf6
{[%clk 0:01:58.6]} 21. Rc1 {[%clk 0:00:31.7]} 21... Red8 {[%clk 0:01:48.1]} 22.
Ng5 {[%clk 0:00:22.2]} 22... Bd5 {[%clk 0:01:43.4]} 23. Rac2 {[%clk 0:00:20.8]}
23... h6 {[%clk 0:01:36.6]} 24. Nf3 {[%clk 0:00:20.5]} 24... g5 {[%clk
0:01:32.1]} 25. h3 {[%clk 0:00:20.2]} 25... Kg7 {[%clk 0:01:23.6]} 26. Rd2
{[%clk 0:00:09.8]} 26... Bxf3 {[%clk 0:00:57.3]} 27. gxf3 {[%clk 0:00:08.7]}
27... Ne5 {[%clk 0:00:57.4]} 28. Rxd8 {[%clk 0:00:07.9]} 28... Nxf3+ {[%clk
0:00:55.8]} 29. Kg2 {[%clk 0:00:08.4]} 29... Nh4+ {[%clk 0:00:56.1]} 30. Kf1
{[%clk 0:00:06.5]} 30... Rxd8 {[%clk 0:00:51.7]} 31. Rc7 {[%clk 0:00:06.2]}
31... Nf5 {[%clk 0:00:49.5]} 32. Bb3 {[%clk 0:00:04.8]} 32... Nxe3+ {[%clk
0:00:44.8]} 33. fxe3 {[%clk 0:00:03.3]} 33... Rd3 {[%clk 0:00:45.3]} 34. Bxf7
{[%clk 0:00:02.3]} 34... Rxe3 {[%clk 0:00:41]} 35. Rxb7 {[%clk 0:00:02.4]} 35...
Rxa3 {[%clk 0:00:37.5]} 36. Bh5+ {[%clk 0:00:01.6]} 36... Kg8 {[%clk 0:00:37.4]}
37. Rb8+ {[%clk 0:00:01.3]} 37... Kh7 {[%clk 0:00:35.3]} 38. Rb7+ {[%clk
0:00:02.2]} 38... Bg7 {[%clk 0:00:35.5]} 39. Bg4 {[%clk 0:00:01.3]} 39... Ra5
{[%clk 0:00:32.8]} 40. Kg2 {[%clk 0:00:01.7]} 40... Kg6 {[%clk 0:00:31.8]} 41.
Rd7 {[%clk 0:00:02]} 41... Bf6 {[%clk 0:00:28.3]} 42. Bf3 {[%clk 0:00:02.4]}
42... Ra2+ {[%clk 0:00:25.6]} 43. Kg3 {[%clk 0:00:02.4]} 43... Be5+ {[%clk
0:00:24.6]} 0-1

[Event "*** Titled Tuesday Blitz"]
[Site "Chess.com"]
[Date "2020.10.20"]
[Round "4"]
[White "IngOscarArdila"]
[Black "MatyChess1"]
[Result "0-1"]
[WhiteElo "2190"]
[BlackElo "2552"]
[TimeControl "180+1"]
[EndTime "10:41:26 PDT"]
[Termination "MatyChess1 won by resignation"]

1. d4 {[%clk 0:03:00.9]} 1... Nf6 {[%clk 0:02:56.8]} 2. c4 {[%clk 0:03:00.4]}
2... e6 {[%clk 0:02:57]} 3. Nc3 {[%clk 0:03:00]} 3... Bb4 {[%clk 0:02:57.3]} 4.
Bd2 {[%clk 0:03:00.2]} 4... O-O {[%clk 0:02:56.3]} 5. Nf3 {[%clk 0:03:00.1]}
5... d5 {[%clk 0:02:55.1]} 6. e3 {[%clk 0:02:59.9]} 6... b6 {[%clk 0:02:54.3]}
7. cxd5 {[%clk 0:02:58.1]} 7... exd5 {[%clk 0:02:54.1]} 8. Bd3 {[%clk
0:02:58.5]} 8... Bb7 {[%clk 0:02:51]} 9. O-O {[%clk 0:02:58.1]} 9... c5 {[%clk
0:02:45.3]} 10. Ne5 {[%clk 0:02:56.5]} 10... Nc6 {[%clk 0:02:37.3]} 11. Nxc6
{[%clk 0:02:54.3]} 11... Bxc6 {[%clk 0:02:36.9]} 12. a3 {[%clk 0:02:54.2]} 12...
Ba5 {[%clk 0:02:31.6]} 13. Qf3 {[%clk 0:02:47]} 13... Re8 {[%clk 0:02:26.1]} 14.
Qf5 {[%clk 0:02:36.6]} 14... Qd6 {[%clk 0:02:13.6]} 15. Rac1 {[%clk 0:02:23]}
15... Re6 {[%clk 0:01:46.2]} 16. h3 {[%clk 0:02:19.2]} 16... Ne4 {[%clk
0:01:33.2]} 17. Nxe4 {[%clk 0:01:50.5]} 17... dxe4 {[%clk 0:01:31.6]} 18. Bxa5
{[%clk 0:01:45.1]} 18... exd3 {[%clk 0:01:29.4]} 19. dxc5 {[%clk 0:01:34.9]}
19... Qe7 {[%clk 0:01:19.8]} 20. cxb6 {[%clk 0:01:31.4]} 20... Re5 {[%clk
0:01:19.5]} 21. Bb4 {[%clk 0:01:25.4]} 21... Qe8 {[%clk 0:01:18.7]} 22. Qxd3
{[%clk 0:01:16.3]} 22... Bb5 {[%clk 0:01:15.7]} 23. Qd4 {[%clk 0:01:06]} 23...
axb6 {[%clk 0:01:01.2]} 24. Rfd1 {[%clk 0:01:01.4]} 24... h6 {[%clk 0:00:55.5]}
25. Bc3 {[%clk 0:01:00.8]} 25... Rg5 {[%clk 0:00:54]} 26. f4 {[%clk 0:00:44.7]}
26... Rg6 {[%clk 0:00:50.7]} 27. f5 {[%clk 0:00:41.9]} 27... Rg5 {[%clk
0:00:44.4]} 28. h4 {[%clk 0:00:41.3]} 28... Rg3 {[%clk 0:00:44.3]} 29. Kf2
{[%clk 0:00:39.4]} 29... Qb8 {[%clk 0:00:38.8]} 30. Qe5 {[%clk 0:00:33.2]} 30...
Rg4 {[%clk 0:00:34.6]} 31. Rd7 {[%clk 0:00:23.5]} 31... Qxe5 {[%clk 0:00:30.4]}
32. Bxe5 {[%clk 0:00:23.3]} 32... Bxd7 {[%clk 0:00:31]} 33. Kf3 {[%clk
0:00:18.8]} 33... Bxf5 {[%clk 0:00:30.2]} 34. Bf4 {[%clk 0:00:16.3]} 34... h5
{[%clk 0:00:28.4]} 35. e4 {[%clk 0:00:16.1]} 35... Be6 {[%clk 0:00:28.8]} 36.
Rc7 {[%clk 0:00:14.3]} 36... Rc8 {[%clk 0:00:28.7]} 37. b4 {[%clk 0:00:11.4]}
37... Rxc7 {[%clk 0:00:28.1]} 38. Bxc7 {[%clk 0:00:12.3]} 38... b5 {[%clk
0:00:29]} 39. g3 {[%clk 0:00:11.3]} 39... Bb3 {[%clk 0:00:27]} 40. Bf4 {[%clk
0:00:11.1]} 40... f6 {[%clk 0:00:27.3]} 41. Ke3 {[%clk 0:00:10.9]} 41... Kf7
{[%clk 0:00:27.8]} 42. Kd4 {[%clk 0:00:10.9]} 42... Ke6 {[%clk 0:00:27.8]} 43.
Kc5 {[%clk 0:00:10.9]} 43... Ba4 {[%clk 0:00:28.6]} 44. Kd4 {[%clk 0:00:07.3]}
44... g5 {[%clk 0:00:28.5]} 45. hxg5 {[%clk 0:00:06.8]} 45... fxg5 {[%clk
0:00:29.4]} 46. Bb8 {[%clk 0:00:06]} 46... h4 {[%clk 0:00:29.6]} 47. gxh4 {[%clk
0:00:06.1]} 47... gxh4 {[%clk 0:00:30.5]} 0-1